bitfinex/quotes_ETHUSD_20251126
["timestamp","ask_amount","ask_price","bid_price","bid_amount"]
[1764178657188,13.3062772,3006.1,3004.5,0.4356]
[1764178657477,4.0224693,3006.1,3006.0,0.1]
[1764178657638,0.4649,3006.0,3005.5,0.1]
[1764178657837,3.9649,3006.0,3004.4,0.1758]
[1764178658076,3.5,3005.8,3005.2,0.1]
[1764178658274,13.71203603,3005.7,3005.2,0.1]
[1764178658436,1.70389804,3005.6,3003.3,0.231]
[1764178658642,3.5,3005.4,3003.7,0.0008]
[1764178658878,3.5,3005.4,3004.8,0.1]
[1764178658879,0.231,3005.3,3004.8,0.1]
[1764178659077,0.41959,3005.3,3005.0,0.1]
[1764178659262,0.41959,3005.3,3003.4,22.203092]
[1764178659465,0.41959,3005.3,3003.3,6.89033755]
[1764178659466,0.4649,3005.4,3003.5,0.72559411]
[1764178659795,3.32701201,3005.7,3005.6,0.1]
[1764178660151,3.32674771,3006.0,3005.6,0.1]
[1764178660461,0.4649,3005.9,3005.7,0.1]
[1764178660661,0.4669,3005.9,3005.6,0.1]
[1764178661040,0.4669,3005.9,3005.8,0.1]
[1764178661245,0.002,3005.9,3005.8,0.1]
[1764178661476,0.002,3005.9,3005.0,0.001]
[1764178661477,0.4669,3005.9,3005.6,0.1]
[1764178662041,0.4669,3005.9,3005.0,0.001]
[1764178662042,5.57421772,3005.9,3005.0,0.001]
[1764178662241,5.57421772,3005.9,3005.0,0.101]
[1764178662242,13.30760528,3005.8,3005.0,0.101]
[1764178662456,0.23,3005.7,3005.3,0.1]
[1764178662826,0.6949,3005.7,3005.0,0.001]
[1764178662990,0.6949,3005.7,3005.4,0.1]
[1764178663155,0.4649,3005.6,3005.4,0.1]
[1764178664297,3.32690132,3005.8,3005.7,0.1]
[1764178664494,3.32879265,3005.9,3005.8,0.1]
[1764178664495,3.32881812,3005.9,3005.8,0.1]
[1764178664667,0.002,3005.9,3005.8,0.1]
[1764178665267,3.27961908,3007.0,3005.8,0.1]
[1764178665463,3.27961908,3007.0,3006.9,0.1]
[1764178666199,3.3251568,3007.4,3006.2,0.0361]
[1764178666402,6.64982044,3007.6,3007.3,0.1]
[1764178666571,6.64982044,3007.6,3007.5,0.1]
[1764178666572,3.32491022,3007.6,3007.5,0.1]
[1764178666774,13.76534088,3007.6,3006.2,0.0361]
[1764178667110,0.4657,3007.5,3007.3,0.1]
[1764178667407,0.1954,3007.1,3005.6,0.0361]
[1764178667565,0.1954,3007.1,3005.1,20.34013]
[1764178667566,0.1954,3007.1,3005.1,3.756977]
[1764178667772,0.4657,3007.0,3006.5,0.1]
[1764178667980,0.4657,3007.0,3006.0,0.1]
[1764178668181,16.62842125,3006.9,3005.0,0.0371]
[1764178668479,2.66500624,3006.8,3006.0,0.1]
[1764178668683,0.4657,3006.7,3005.0,0.001]
[1764178669015,0.4657,3006.7,3006.1,0.1]
[1764178669180,0.4657,3006.7,3006.5,0.1]
[1764178669564,3.32568425,3006.9,3006.8,0.1]
[1764178669864,3.32568425,3006.9,3005.4,0.0361]
[1764178669865,3.32546474,3007.1,3007.0,0.1]
[1764178670270,9.97383632,3007.9,3007.4,0.1]
[1764178670593,1.88265363,3007.8,3007.4,0.1]
[1764178671094,1.88265363,3007.8,3005.6,0.23]
[1764178671095,1.19129411,3007.7,3007.0,0.1]
[1764178671265,0.72559411,3007.3,3006.6,0.1]
[1764178671466,0.23,3007.3,3006.9,0.1]
[1764178671803,1.19129411,3007.2,3006.6,0.1]
[1764178672120,0.6957,3007.2,3006.9,0.1]
[1764178672410,3.98656307,3007.1,3006.9,0.1]
[1764178672564,3.32546307,3007.1,3005.7,0.0361]
[1764178672906,3.32546307,3007.1,3007.0,0.1]
[1764178673422,0.4657,3007.9,3007.0,0.1]
[1764178673702,3.32442868,3008.1,3008.0,0.1]
[1764178674204,6.64878624,3008.1,3006.7,2.89313058]
[1764178674403,0.4687,3008.2,3007.9,0.1]
[1764178674604,0.4687,3008.2,3006.7,0.0361]
[1764178674784,0.4687,3008.2,3007.9,0.1]
[1764178674980,0.4687,3008.2,3006.7,0.0361]
[1764178675206,0.4687,3008.2,3008.1,0.1]
[1764178675784,0.4687,3008.2,3006.4,0.23]
[1764178675990,0.4687,3008.2,3008.1,0.1]
[1764178676300,6.6514941,3008.2,3006.6,3.32601609]
[1764178676501,3.32724705,3008.2,3008.1,0.1]
[1764178676704,0.003,3008.2,3008.1,0.1]
[1764178677298,3.32724705,3008.2,3008.1,0.1]
[1764178678324,0.003,3008.2,3008.1,0.1]
[1764178678516,0.003,3008.2,3007.4,4.565227]
[1764178678685,0.003,3008.2,3008.1,0.1]
[1764178679090,0.005,3008.2,3008.1,0.1]
[1764178679875,0.002,3008.6,3008.1,0.1]
[1764178679876,0.002,3008.6,3008.2,14.562889]
[1764178680106,6.6434147,3010.5,3010.3,0.1]
[1764178680329,0.73045147,3010.5,3010.3,0.1]
[1764178680477,0.73045147,3010.5,3009.2,0.0311]
[1764178680478,3.78740735,3010.5,3009.2,0.0311]
[1764178680676,3.78740735,3010.5,3008.6,4.04932155]
[1764178680677,0.4657,3010.4,3010.0,0.1]
[1764178680908,0.4657,3010.4,3008.5,0.0311]
[1764178680909,0.4657,3010.4,3008.7,0.23]
[1764178681204,0.4657,3010.4,3010.2,0.1]
[1764178681407,1.5283222,3010.4,3010.2,0.1]
[1764178681616,1.5283222,3010.4,3009.8,0.1]
[1764178681819,0.4657,3010.3,3008.9,0.23]
[1764178682115,0.4657,3010.3,3008.5,0.0311]
[1764178682307,16.61129565,3010.0,3008.4,0.23]
[1764178682685,0.4657,3009.9,3009.1,0.1]
[1764178682889,6.64451826,3010.0,3009.8,0.1]
[1764178683089,3.32225913,3010.0,3009.9,0.1]
[1764178683298,3.32225913,3010.0,3009.4,0.1]
[1764178683299,0.4657,3009.9,3009.4,0.1]
[1764178683502,0.4657,3009.9,3008.9,0.1]
[1764178683717,0.4657,3009.9,3008.0,0.23]
[1764178684015,0.4657,3009.9,3009.5,0.1]
[1764178684218,1.19129411,3009.9,3009.2,0.1]
[1764178684424,9.96777087,3009.7,3009.2,0.1]
[1764178684591,0.1954,3009.3,3009.2,0.1]
[1764178684914,0.1954,3009.3,3008.9,0.1]
[1764178685219,0.1954,3009.3,3007.9,0.23]
[1764178685394,13.29036116,3009.7,3009.6,0.1]
[1764178685395,3.32259029,3009.7,3009.6,0.1]
[1764178686314,0.4657,3010.2,3008.8,0.23]
[1764178686315,9.96644628,3010.1,3008.8,0.23]
[1764178686518,3.32214876,3010.1,3010.0,0.1]
[1764178686721,3.81841913,3010.1,3010.0,0.1]
[1764178687124,4.29451913,3010.1,3010.0,0.1]
[1764178688122,4.29451913,3010.1,3008.8,0.23]
[1764178688123,3.32159702,3010.6,3010.5,0.1]
[1764178688335,0.1954,3011.1,3009.3,0.0311]
[1764178688336,0.1954,3012.1,3009.9,0.23]
[1764178688522,0.1954,3012.1,3011.6,0.1]
[1764178688523,3.50728383,3011.7,3011.6,0.1]
[1764178688723,4.05074948,3011.7,3011.6,0.1]
[1764178689302,0.72559411,3011.6,3009.2,0.05]
[1764178689503,0.72559411,3011.6,3009.9,0.1]
[1764178689504,0.23,3011.5,3009.9,0.1]
[1764178689722,0.7061,3011.5,3009.8,0.0008]
[1764178689925,0.7061,3011.5,3010.8,0.1]
[1764178690124,0.4761,3011.4,3010.4,0.1]
[1764178690428,0.4761,3011.4,3008.8,3.32357343]
[1764178690429,0.72559411,3011.2,3009.1,0.23]
[1764178690628,2.06505435,3011.1,3010.1,0.1]
[1764178690831,2.06505435,3011.1,3010.4,0.1]
[1764178690832,0.95559411,3011.0,3010.4,0.1]
[1764178691012,0.7061,3011.0,3010.4,0.1]
[1764178691209,0.1869,3010.5,3010.4,0.1]
[1764178691415,9.96247467,3011.3,3011.0,0.1]
[1764178691615,7.68550725,3011.3,3009.7,0.0311]
[1764178691821,14.55715703,3011.3,3009.3,0.0311]
[1764178692338,4.36468236,3011.3,3011.2,0.1]
[1764178692705,11.48243214,3011.3,3011.0,0.1]
[1764178692931,0.4761,3011.2,3011.0,0.1]
[1764178693102,1.62434321,3011.2,3011.0,0.1]
[1764178693304,0.4761,3011.1,3009.9,0.1]
[1764178693505,9.96247467,3011.3,3009.6,0.0008]
[1764178693818,9.96247467,3011.3,3009.2,0.0311]
[1764178693819,0.4761,3011.2,3009.2,0.0311]
[1764178694021,0.71177498,3011.1,3011.0,0.1]
[1764178694334,0.71177498,3011.1,3009.4,3.490654]
[1764178694335,16.6057788,3011.0,3009.4,3.490654]
[1764178694499,3.80415576,3011.0,3010.9,0.1]
[1764178694933,17.0887788,3011.0,3009.5,2.437101]
[1764178695111,0.483,3010.9,3009.4,0.1]
[1764178695306,1.70887788,3010.8,3009.4,0.0008]
[1764178695507,1.70887788,3010.8,3009.3,0.23]
[1764178695508,1.70887788,3010.8,3010.7,0.1]
[1764178695836,0.6823,3010.7,3010.3,0.1]
[1764178696208,0.483,3010.6,3010.3,0.1]
[1764178696409,6.6434147,3010.5,3010.3,0.1]
[1764178696611,4.38642964,3010.5,3010.4,0.1]
[1764178696810,3.32170735,3010.5,3010.4,0.1]
[1764178697536,3.80470735,3010.5,3010.4,0.1]
[1764178698027,3.80970735,3010.5,3010.4,0.1]
[1764178698806,3.32670735,3010.5,3010.4,0.1]
[1764178699232,6.6484147,3010.5,3009.7,0.0311]
[1764178699437,3.32670735,3010.5,3010.4,0.1]
[1764178701834,0.005,3010.5,3010.4,0.1]
[1764178702021,0.005,3010.5,3010.4,0.3601]
[1764178702222,3.32670735,3010.5,3010.4,0.1]
[1764178702421,4.14237809,3010.5,3010.4,0.1]
[1764178702718,3.32670735,3010.5,3010.4,0.1]
[1764178703943,3.32670735,3010.5,3009.1,0.001]
[1764178703944,13.7748294,3010.5,3009.1,0.001]
[1764178704148,3.80970735,3010.5,3010.4,0.1]
[1764178704349,13.2918294,3010.5,3010.1,0.1]
[1764178704518,16.61353675,3010.5,3009.8,0.1]
[1764178704715,3.5,3010.0,3009.1,0.001]
[1764178704936,0.1993,3009.6,3009.1,0.001]
[1764178705136,0.483,3010.1,3010.0,0.1]
[1764178705645,0.483,3010.1,3009.1,0.001]
[1764178705827,0.483,3010.1,3010.0,0.1]
[1764178706223,0.483,3010.1,3009.1,0.001]
[1764178706423,0.483,3010.1,3010.0,0.1]
[1764178706630,3.32214876,3010.1,3010.0,0.1]
[1764178706933,3.80514876,3010.1,3010.0,0.1]
[1764178707138,3.32214876,3010.1,3010.0,0.1]
[1764178707904,3.80514876,3010.1,3010.0,0.1]
[1764178708028,3.5,3010.0,3009.1,0.001]
[1764178708344,6.64429752,3010.1,3009.1,0.001]
[1764178708546,6.64363538,3010.4,3009.2,0.229]
[1764178708714,0.483,3010.3,3010.1,0.1]
[1764178708919,0.483,3010.3,3009.8,0.1]
[1764178709120,1.70920885,3010.2,3009.5,0.1]
[1764178709616,16.921857,3008.8,3007.5,2.83697635]
[1764178709823,8.78115264,3007.6,3007.2,0.1]
[1764178710151,8.78115264,3007.6,3006.8,0.1]
[1764178710152,0.405504,3007.4,3006.8,0.1]
[1764178710387,0.53785488,3007.3,3006.8,0.1]
[1764178710522,6.65158972,3006.8,3005.8,0.1331]
[1764178710724,0.66596827,3007.8,3006.8,0.1]
[1764178710971,6.64896138,3008.0,3006.6,0.1]
[1764178710972,9.97345468,3008.0,3006.6,0.1]
[1764178711133,6.64896138,3008.0,3007.7,0.1]
[1764178711464,3.32446808,3008.0,3007.9,0.1]
[1764178712742,9.97240965,3008.3,3008.0,0.1]
[1764178712958,9.97240965,3008.3,3008.2,0.1]
[1764178712959,3.32413655,3008.3,3008.2,0.1]
[1764178714172,3.32413655,3008.3,3007.1,0.1331]
[1764178714173,7.23228677,3008.3,3008.1,0.1]
[1764178714325,9.98974675,3008.2,3006.3,0.001]
[1764178714657,7.31170787,3007.3,3006.3,0.001]
[1764178714955,1.4907156,3007.2,3006.3,0.001]
[1764178715247,0.405504,3007.0,3006.3,0.001]
[1764178715476,7.31170787,3006.8,3006.3,0.001]
[1764178715685,0.229,3006.7,3006.3,0.001]
[1764178715849,0.483,3006.7,3006.3,0.001]
[1764178716048,0.483,3006.7,3006.4,0.1]
[1764178716257,0.483,3006.7,3006.6,0.1]
[1764178716553,0.712,3006.7,3006.3,0.001]
[1764178716977,0.72559411,3006.5,3006.2,0.1]
[1764178717154,1.11866424,3006.4,3006.2,0.1]
[1764178717478,0.229,3006.6,3006.0,0.1]
[1764178717657,0.483,3006.6,3005.3,0.1331]
[1764178717853,0.483,3006.6,3006.3,0.1]
[1764178718183,0.229,3006.5,3006.1,0.1]
[1764178718381,0.483,3006.4,3006.3,0.1]
[1764178718880,3.80923736,3006.4,3006.3,0.1]
[1764178719082,10.46171208,3006.4,3006.1,0.1]
[1764178719282,0.483,3006.3,3006.1,0.1]
[1764178719484,0.1993,3006.2,3006.1,0.1]
[1764178719684,0.1993,3006.2,3005.3,0.1331]
[1764178719685,1.49440121,3006.2,3005.9,0.101]
[1764178719981,0.483,3006.1,3005.9,0.101]
[1764178720182,0.229,3006.2,3005.9,0.001]
[1764178720481,3.32623736,3006.4,3006.3,0.1]
[1764178720684,11.18730619,3006.4,3005.9,0.001]
[1764178720981,6.6529173,3006.2,3005.9,0.001]
[1764178721354,6.6529173,3006.2,3006.1,0.1]
[1764178721355,3.32645865,3006.2,3006.1,0.1]
[1764178721894,6.6529173,3006.2,3006.0,0.1]
[1764178722386,7.3352173,3006.2,3005.9,0.001]
[1764178722583,3.32645865,3006.2,3006.1,0.1]
[1764178722962,3.32605223,3006.6,3006.3,0.1]
[1764178722963,6.65203218,3006.6,3006.3,0.1]
[1764178723167,2.45829244,3006.5,3005.9,0.001]
[1764178723357,2.22929244,3006.5,3005.9,0.001]
[1764178723563,0.229,3006.4,3006.3,0.1]
[1764178723764,0.712,3006.4,3006.3,0.1]
[1764178724490,0.712,3006.4,3005.9,0.001]
[1764178724693,1.34216771,3008.7,3005.9,0.001]
[1764178724988,1.34216771,3008.7,3008.0,0.1]
[1764178724989,7.1017941,3008.2,3008.0,0.1]
[1764178725380,6.6484941,3008.2,3008.0,0.1]
[1764178725572,6.6484941,3008.2,3007.9,0.1]
[1764178725775,9.97274115,3008.2,3007.9,0.1]
[1764178726092,9.97274115,3008.2,3008.1,0.1]
[1764178726093,3.32424705,3008.2,3008.1,0.1]
[1764178726997,3.52261245,3009.1,3007.5,0.2331]
[1764178726998,0.229,3008.9,3008.8,0.1]
[1764178727360,0.229,3008.9,3007.5,0.2331]
[1764178727361,3.55236324,3009.0,3008.9,0.1]
[1764178727686,4.00566324,3009.0,3007.5,0.2331]
[1764178727888,3.32336324,3009.0,3007.6,0.05]
[1764178728089,9.97008972,3009.0,3008.2,7.877104]
[1764178728390,3.32336324,3009.0,3008.9,0.001]
[1764178729061,3.32336324,3009.0,3008.3,0.2331]
[1764178729062,6.64569672,3009.5,3009.3,0.001]
[1764178729266,3.32281109,3009.5,3009.4,0.001]
[1764178729466,6.64562218,3009.5,3009.2,0.001]
[1764178729665,3.32281109,3009.5,3009.4,0.001]
[1764178730061,4.52202557,3009.5,3009.4,0.001]
[1764178730262,14.94375884,3009.5,3009.1,0.001]
[1764178730497,0.4533,3009.4,3009.1,0.001]
[1764178730699,0.4533,3009.4,3008.8,0.001]
[1764178730700,1.17889411,3009.4,3008.8,0.001]
[1764178730916,1.17889411,3009.4,3008.4,0.001]
[1764178731073,0.72559411,3009.1,3008.7,0.001]
[1764178731494,0.4533,3009.0,3008.7,0.001]
[1764178731775,0.4533,3009.0,3008.8,0.001]
[1764178731979,0.229,3008.9,3008.8,0.001]
[1764178732398,0.6823,3008.9,3007.4,0.229]
[1764178732598,0.72559411,3009.1,3007.5,2.399946]
[1764178732898,2.41643059,3009.0,3007.4,0.4621]
[1764178733102,0.72559411,3008.8,3008.4,0.001]
[1764178733274,6.64694738,3008.9,3008.7,0.001]
[1764178733477,0.229,3008.8,3008.7,0.001]
[1764178733702,0.6823,3008.8,3008.7,0.001]
[1764178734078,1.48518933,3008.8,3008.5,0.001]
[1764178734480,0.4533,3008.7,3008.5,0.001]
[1764178734685,0.229,3008.6,3008.5,0.001]
[1764178735116,3.55280509,3008.6,3008.5,0.001]
[1764178736884,3.32380509,3008.6,3008.5,0.001]
[1764178737214,3.55280509,3008.6,3008.5,0.001]
[1764178738055,18.09234421,3008.6,3007.1,0.1]
[1764178738335,1.17889411,3008.5,3006.8,0.1]
[1764178738932,8.42097481,3008.3,3007.8,0.001]
[1764178739136,9.97274115,3008.2,3007.8,0.001]
[1764178739441,0.184,3007.9,3007.6,0.001]
[1764178739636,0.6823,3007.8,3007.6,0.001]
[1764178739800,16.62123525,3008.2,3007.0,0.2331]
[1764178739996,0.229,3007.9,3007.8,0.001]
[1764178740412,17.07453525,3008.2,3007.8,0.001]
[1764178740842,3.32424705,3008.2,3008.1,0.001]
[1764178741012,9.97274115,3008.2,3006.8,0.3331]
[1764178741335,3.32424705,3008.2,3007.9,0.001]
[1764178741538,0.229,3008.1,3008.0,0.001]
[1764178741764,3.32413925,3008.3,3008.2,0.001]
[1764178741946,3.32413655,3008.3,3008.2,0.001]
[1764178742610,3.32413655,3008.3,3007.1,0.2331]
[1764178742611,4.65746409,3008.3,3007.1,0.2331]
[1764178742813,7.75260064,3008.3,3008.1,0.001]
[1764178743011,3.32413655,3008.3,3008.2,0.001]
[1764178743217,0.229,3008.6,3008.5,0.001]
[1764178743416,0.229,3008.6,3008.2,0.001]
[1764178743746,0.4533,3008.5,3008.2,0.001]
[1764178743943,0.6823,3008.5,3008.2,0.001]
[1764178744148,1.40789411,3008.5,3007.9,0.001]
[1764178744304,1.43618689,3008.4,3007.9,0.001]
[1764178744744,0.4533,3008.3,3007.9,0.001]
[1764178745117,6.6484941,3008.2,3007.9,0.001]
[1764178745314,0.229,3008.1,3006.0,0.229]
[1764178745571,0.229,3008.1,3006.1,8.425216]
[1764178746195,9.97274115,3008.2,3006.3,15.504206]
[1764178746355,6.6484941,3008.2,3006.6,0.72559411]
[1764178746696,6.6484941,3008.2,3006.7,29.483852]
[1764178746866,6.6484941,3008.2,3006.8,0.405504]
[1764178747067,0.229,3008.1,3007.1,30.0]
[1764178747302,6.64893616,3008.0,3007.3,30.0]
[1764178747605,6.64893616,3008.0,3007.0,0.72559411]
[1764178747606,9.97340424,3008.0,3007.4,3.0]
[1764178747897,6.64893616,3008.0,3007.1,30.0]
[1764178748102,13.2943366,3008.8,3007.1,30.0]
[1764178748394,0.229,3008.7,3007.1,9.659039]
[1764178748709,0.229,3008.7,3006.6,7.30682301]
[1764178748710,0.229,3008.6,3006.9,27.252284]
[1764178748996,0.229,3008.6,3006.9,24.338211]
[1764178749194,13.2943366,3008.8,3007.2,3.32535248]
[1764178749404,0.229,3008.7,3007.1,9.449157]
[1764178749613,0.229,3008.7,3007.0,30.0]
[1764178750109,0.6981,3008.7,3006.6,0.72559411]
[1764178750474,9.97075245,3008.8,3006.8,0.72559411]
[1764178750696,0.229,3008.6,3007.0,6.320592]
[1764178750883,0.229,3008.6,3006.8,0.72559411]
[1764178751209,0.229,3008.6,3006.9,30.0]
[1764178751376,13.76476228,3008.5,3006.9,27.64950116]
[1764178751578,0.229,3008.4,3006.8,4.0513325]
[1764178751784,13.76476228,3008.5,3007.0,22.372844]
[1764178751984,0.229,3008.3,3007.0,22.372844]
[1764178752184,0.229,3008.3,3006.9,0.73772342]
[1764178752432,0.4691,3008.2,3006.8,0.72559411]
[1764178752574,0.4691,3008.2,3006.1,24.3165922]
[1764178752777,3.9691,3008.4,3006.2,16.280656]
[1764178753107,0.4691,3008.3,3006.4,11.014017]
[1764178753308,13.29743024,3008.1,3006.5,3.32612672]
[1764178753604,0.57259703,3008.0,3006.1,4.025614]
[1764178753810,4.54169703,3008.0,3006.0,0.229]
[1764178753971,4.54169703,3008.0,3006.1,2.307268]
[1764178754167,3.9526,3007.9,3006.1,2.307268]
[1764178754414,0.4526,3007.9,3006.1,2.307268]
[1764178754612,0.62767911,3007.8,3006.2,0.2536268]
[1764178754920,0.6816,3007.7,3006.2,0.2536268]
[1764178755083,0.4526,3007.7,3005.8,19.228874]
[1764178755276,9.97506234,3007.5,3006.0,3.32667997]
[1764178755490,9.97506234,3007.5,3006.1,17.554934]
[1764178755689,13.30008312,3007.5,3006.0,29.319405]
[1764178755889,0.229,3007.4,3006.2,20.820023]
[1764178756103,0.229,3007.4,3006.2,13.367997]
[1764178756409,0.229,3007.4,3006.2,10.202594]
[1764178756975,0.229,3007.4,3005.2,3.73301448]
[1764178756976,0.1877,3006.3,3005.0,0.001]
[1764178757178,0.6816,3006.2,3005.0,0.001]
[1764178757416,13.5352772,3006.1,3005.0,0.001]
[1764178757612,15.40543492,3006.1,3005.0,0.001]
[1764178757778,0.4526,3006.0,3005.0,0.001]
[1764178758478,0.229,3005.9,3005.0,0.001]
[1764178758773,0.229,3005.8,3005.0,0.001]
[1764178759191,0.6816,3005.7,3005.0,0.001]
[1764178759394,9.9813681,3005.6,3005.0,0.001]
[1764178759608,15.16008403,3005.6,3005.0,0.001]
[1764178759904,3.3271227,3005.6,3005.0,0.001]
[1764178760114,3.32667997,3006.0,3005.1,2.208526]
[1764178760278,3.32667997,3006.0,3005.1,3.44496]
[1764178760480,6.65335994,3006.0,3005.1,2.9964]
[1764178760703,9.98003991,3006.0,3005.2,0.29974]
[1764178760904,9.98003991,3006.0,3005.0,0.001]
[1764178761116,6.65335994,3006.0,3005.0,0.001]
[1764178761277,0.229,3005.9,3005.1,2.997228]
[1764178761590,9.98070396,3005.8,3005.0,0.001]
[1764178761786,6.65380264,3005.8,3005.1,4.840758]
[1764178761985,6.65380264,3005.8,3005.0,0.001]
[1764178761986,0.229,3005.7,3005.0,0.001]
[1764178762713,2.03526053,3005.7,3005.0,0.001]
[1764178763123,0.4526,3005.6,3005.0,0.001]
[1764178763284,9.98070396,3005.8,3005.0,0.001]
[1764178763487,3.3271227,3005.6,3005.1,9.408948]
[1764178763719,6.6542454,3005.6,3005.0,0.001]
[1764178764207,3.32692471,3005.8,3005.1,4.482127]
[1764178764425,0.229,3005.7,3005.1,0.4483127]
[1764178764718,0.229,3005.7,3005.0,0.001]
[1764178764908,9.98077413,3005.8,3005.0,0.001]
[1764178765079,6.65384942,3005.8,3005.0,0.001]
[1764178765284,0.229,3005.7,3005.0,0.001]
[1764178765690,3.3271227,3005.6,3005.0,0.001]
[1764178766524,6.6542454,3005.6,3005.0,0.001]
[1764178766683,3.3271227,3005.6,3005.0,0.001]
[1764178767091,6.6542454,3005.6,3005.0,0.001]
[1764178767506,3.3271227,3005.6,3005.0,0.001]
[1764178768416,6.6542454,3005.6,3005.0,0.001]
[1764178768618,3.3271227,3005.6,3005.0,0.001]
[1764178769186,11.03298244,3011.5,3005.0,0.001]
[1764178769187,0.1877,3006.9,3005.0,0.001]
[1764178769386,3.32568425,3006.9,3005.3,19.11120671]
[1764178769587,3.32568425,3006.9,3005.5,10.86452]
[1764178769787,0.1877,3007.2,3005.8,6.65380264]
[1764178769788,6.65092614,3007.1,3005.8,6.65380264]
[1764178769994,9.97638921,3007.1,3005.9,5.717152]
[1764178770194,9.97638921,3007.1,3005.9,5.32454]
[1764178770389,6.65092614,3007.1,3006.1,2.763713]
[1764178771393,3.51309341,3007.2,3006.1,2.763713]
[1764178771593,3.32491022,3007.6,3006.1,2.763713]
[1764178771829,6.64959936,3007.7,3006.4,0.72559411]
[1764178772010,6.64959936,3007.7,3006.5,9.904046]
[1764178772210,6.64959936,3007.7,3006.7,7.823727]
[1764178772547,0.002,3006.7,3006.1,0.229]
[1764178772906,0.002,3006.7,3006.2,2.842111]
[1764178773325,0.4546,3006.7,3006.1,0.229]
[1764178773630,0.002,3006.7,3006.1,0.229]
[1764178774220,1.06396846,3006.7,3005.4,3.32734278]
[1764178774426,0.002,3006.7,3005.6,4.955435]
[1764178774621,0.002,3006.7,3005.5,0.229]
[1764178774822,0.002,3006.7,3005.6,2.901746]
[1764178775601,0.002,3006.7,3005.9,0.72559411]
[1764178775840,0.002,3006.7,3006.0,14.63354]
[1764178776129,0.002,3006.7,3006.3,8.828364]
[1764178776332,0.002,3006.7,3006.3,3.036741]
[1764178776645,0.002,3006.7,3006.3,2.575541]
[1764178777912,0.002,3006.7,3006.2,0.229]
[1764178778733,0.4526,3006.6,3005.5,0.229]
[1764178779017,0.002,3006.7,3005.5,0.229]
[1764178779018,0.002,3006.7,3005.6,2.477077]
[1764178779337,0.4546,3006.7,3005.7,0.2706077]
[1764178779540,0.4546,3006.7,3005.8,3.804323]
[1764178779849,0.4546,3006.7,3005.1,9.98302884]
[1764178779850,0.4546,3006.7,3005.5,0.229]
[1764178780048,9.97804827,3006.6,3005.5,0.229]
[1764178780250,9.97804827,3006.6,3005.6,2.185583]
[1764178780448,6.65203218,3006.6,3005.6,2.185583]
[1764178780620,0.4526,3006.5,3005.6,2.185583]
[1764178780825,0.4526,3006.5,3005.6,2.185202]
[1764178781256,0.4526,3006.5,3005.5,0.229]
[1764178781549,7.10463218,3006.6,3005.6,2.185202]
[1764178781766,0.002,3006.7,3005.6,2.91079611]
[1764178782055,0.002,3006.7,3005.8,6.65380264]
[1764178782270,0.002,3006.7,3005.9,10.572727]
[1764178782450,0.002,3006.7,3006.1,8.924676]
[1764178782630,0.002,3006.7,3006.2,0.229]
[1764178783032,0.002,3006.7,3005.0,0.001]
[1764178783033,3.5,3006.2,3005.0,0.001]
[1764178783448,0.405504,3006.5,3005.0,0.001]
[1764178783449,3.5,3006.0,3005.0,0.001]
[1764178783641,0.229,3005.9,3005.0,0.001]
[1764178783845,0.229,3005.8,3005.0,0.001]
[1764178784026,0.4526,3005.9,3005.1,2.80767]
[1764178784351,9.98070396,3005.8,3005.0,0.001]
[1764178784950,6.65380264,3005.8,3005.0,0.001]
[1764178785168,6.65380264,3005.8,3005.1,3.127214]
[1764178785355,0.4887,3005.7,3005.0,0.001]
[1764178785867,9.98070396,3005.8,3005.0,0.001]
[1764178786076,10.46940396,3005.8,3005.0,0.001]
[1764178786274,7.14250264,3005.8,3005.0,0.001]
[1764178786429,10.46940396,3005.8,3005.0,0.001]
[1764178786634,7.14250264,3005.8,3005.0,0.001]
[1764178787077,6.65203218,3006.6,3005.1,2.195894]
[1764178787270,6.65203218,3006.6,3005.3,2.205311]
[1764178787271,7.14073218,3006.6,3005.3,2.205311]
[1764178787468,10.46674827,3006.6,3005.3,2.34963]
[1764178787871,6.65203218,3006.6,3005.3,2.34963]
[1764178788046,6.65203218,3006.6,3005.5,5.223419]
[1764178788252,0.002,3006.7,3005.7,11.579384]
[1764178788573,0.002,3006.7,3005.7,9.85503]
[1764178789037,0.002,3006.7,3005.9,5.734579]
[1764178790279,0.002,3006.7,3006.1,4.93449]
[1764178790598,0.002,3006.7,3006.2,0.826117]
[1764178790770,0.002,3006.7,3006.0,8.403476]
[1764178790974,0.002,3006.7,3006.2,2.361529]
[1764178791153,0.002,3006.7,3006.1,0.228]
[1764178791476,0.002,3006.7,3006.2,0.228]
[1764178792867,0.4907,3006.7,3005.8,5.208667]
[1764178793046,0.4907,3006.7,3006.0,2.119013]
[1764178793365,0.002,3006.7,3006.0,2.119013]
[1764178793744,0.002,3006.7,3006.1,0.228]
[1764178793955,0.002,3006.7,3006.2,0.228]
[1764178794351,0.4907,3006.7,3006.2,0.228]
[1764178794843,3.32793334,3006.7,3006.3,3.243951]
[1764178795158,0.002,3006.7,3006.5,12.799182]
[1764178795344,0.002,3006.7,3006.4,0.3471951]